Cogmind - Beta 14 @@@ ROGUE MODE // 2024.08.07 @ 14:56:47 Player: omewwes Result: Self-destructed Performance ------------- Evolutions (4) 2000 Regions Visited (6) 1200 Robots Destroyed (30) 150 Value Destroyed (848) 848 Prototype IDs (24) 480 Alien Tech Used (0) 0 Bonus (300) 300 TOTAL SCORE: 4978 Bonus ------- Registered with UFD 300 Cogmind --------- Core Integrity 705/850 Matter 300/300 Energy 44/100 System Corruption 0% Temperature Cool (0) Movement Flying (40) Location -6/Lower Caves Parts ------- > --- POWER (2) -------- (None) > --- PROPULSION (5) --- Flightbrick > --- UTILITY (6+3) ---- Scrap Suit Spectral Analyzer Improved Sensor Array (+) Improved Signal Interpreter Improved Terrain Scan Processor Improved Salvage Targeting Computer (+) Improved Hacking Suite > --- WEAPON (2) ------- Junk Cannon > --- INVENTORY (5) ---- Light Angular Momentum Engine Seismic Detector Peak State ------------ > --- POWER ------------ Light Deuterium Engine > --- PROPULSION ------- Flightbrick > --- UTILITY ---------- Scrap Suit Spectral Analyzer Improved Sensor Array Improved Signal Interpreter Improved Terrain Scan Processor Improved Salvage Targeting Computer Improved Hacking Suite > --- WEAPON ----------- Junk Cannon > --- INVENTORY -------- Light Angular Momentum Engine Seismic Detector [Rating: 86] Favorites ----------- Power Light Ion Engine Engine Light Ion Engine Propulsion Light Treads Treads Light Treads Wheel Subdweller Monowheel Flight Unit Flightbrick Utility Scrap Shield Device Scrap Suit Storage Medium Storage Unit Processor Spectral Analyzer Hackware Improved Hacking Suite Protection Scrap Shield Weapon Slug Cannon Energy Cannon Subdweller Beam Cannon Ballistic Gun Assault Rifle Ballistic Cannon Slug Cannon Launcher Grenade Launcher Special Weapon Junk Cannon Build | -11 -10 -10 -8 -8 -6 -6 ------- Run | Yrd Mat Sub Rec Scr Fac Low Slots Evolved 8 | . . . . . 8 . Power 1 | . . . . . 1 . Propulsion 3 | . . . . . 3 . Utility 4 | . . . . . 4 . Weapon . | . . . . . . . Parts Attached 45 | 5 6 16 1 7 10 . Power 8 | 1 1 2 1 1 2 . Engine 8 | 1 1 2 1 1 2 . Core . | . . . . . . . Reactor . | . . . . . . . Propulsion 8 | 2 . 2 . 3 1 . Treads 6 | 2 . 2 . 2 . . Leg . | . . . . . . . Wheel 1 | . . . . 1 . . Hover . | . . . . . . . Flight 1 | . . . . . 1 . Utility 13 | . 3 1 . 2 7 . Device 4 | . 1 . . 1 2 . Storage 1 | . . . . 1 . . Processor 4 | . . . . . 4 . Hackware 1 | . . . . . 1 . Protection 3 | . 2 1 . . . . Artifact . | . . . . . . . Weapon 16 | 2 2 11 . 1 . . Energy Gun . | . . . . . . . Energy Cannon 4 | . . 4 . . . . Ballistic Gun 6 | 2 2 2 . . . . Ballistic Cannon 4 | . . 4 . . . . Launcher 1 | . . 1 . . . . Special Weapon 1 | . . . . 1 . . Impact Weapon . | . . . . . . . Slashing Weapon . | . . . . . . . Piercing Weapon . | . . . . . . . Special Melee Weapon . | . . . . . . . Unidentified Prototypes 1 | . . . . 1 . . Parts Lost 1 | . . . . . . 1 Power 1 | . . . . . . 1 Propulsion . | . . . . . . . Utility . | . . . . . . . Weapon . | . . . . . . . Highest Loss Streak 1 | . . . . . . 1 To Critical Strikes . | . . . . . . . Average Slot Usage (%) 81 | . 94 86 85 82 37 50 Engine 12 | . 14 14 14 13 5 . Treads 24 | . 28 28 28 25 . . Wheel 1 | . . . . 2 . . Device 3 | . 3 . . 4 6 11 Processor 1 | . . . . . 11 22 Protection 11 | . 19 15 14 8 . . Energy Cannon 7 | . . 4 14 11 . . Ballistic Gun 6 | . 28 8 . . . . Ballistic Cannon 9 | . . 14 14 11 . . Special Weapon 1 | . . . . 2 5 5 Peak Build Rating 86 | 5 7 17 18 31 86 86 Average Rating 21 | 3 6 12 17 21 74 83 On Entrance 23 | . 5 7 17 18 31 86 Naked Turns . | . . . . . . . Heaviest Build 40 | 6 11 39 40 40 24 24 Greatest Support 43 | 40 40 40 40 43 24 24 Greatest Overweight (x) 1 | . . . . 1 . . Average Overweight (x) . | . . . . . . . Largest Inventory Capacity 10 | 5 5 5 5 10 5 5 Average Capacity 5 | 5 5 5 5 5 5 5 Most Carried 5 | 1 5 5 5 5 5 2 Average Carried 4 | . 4 4 5 4 1 2 Final Capacity 5 | 5 5 5 5 5 5 5 Final Carried 5 | 1 5 5 5 5 2 2 Class Distribution -------------------- 70% | Mutant 13% | Subdweller-Mutant 9% | Scrapper 4% | Derelict-Scrapper Dominant Class ---------------- Mutant | -10/Materials Mutant | -10/Subcaves Mutant | -8/Recycling Mutant | -8/Scraptown Mutant | -6/Factory Scout | -6/Lower Caves Resources | -11 -10 -10 -8 -8 -6 -6 ----------- Run | Yrd Mat Sub Rec Scr Fac Low Matter Collected 936 | 190 134 383 63 70 96 . Remotely . | . . . . . . . Salvage Created 741 | . 134 233 . . 332 42 Parts 61 | . 10 31 . . 19 1 Haulers Intercepted . | . . . . . . . Recyclers Shooed . | . . . . . . . Parts Field Recycled . | . . . . . . . Retrieved Matter . | . . . . . . . Parts Self-Destructed 18 | . . 15 . . . 3 Prevented . | . . . . . . . Kills | -11 -10 -10 -8 -8 -6 -6 ------- Run | Yrd Mat Sub Rec Scr Fac Low Combat Hostiles Destroyed 27 | . 5 11 . . 9 2 Guns 12 | . 5 7 . . . . Cannons 7 | . . 2 . . 4 1 AOE 2 | . . 2 . . . . Classes Destroyed 8 | . 2 2 . . 4 . Turret 2 | . . 2 . . . . Watcher 1 | . . . . . 1 . Swarmer 17 | . 3 7 . . 5 2 Grunt 2 | . 2 . . . . . Sentry 1 | . . . . . 1 . Hunter 2 | . . . . . 2 . Programmer 1 | . . . . . 1 . Subdweller 4 | . . 4 . . . . Best Kill Streak 4 | . 3 4 . . 4 1 Combat Bots Only 4 | . 3 4 . . 4 1 Max Kills in Single Turn 2 | . 1 2 . . 1 1 Gunslinging . | . . . . . . . Exploded 2 | . . 2 . . . . Melee . | . . . . . . . Uniques/NPCs Destroyed . | . . . . . . . Combat | -11 -10 -10 -8 -8 -6 -6 -------- Run | Yrd Mat Sub Rec Scr Fac Low Hostile Shots Fired 225 | . 23 88 . . 46 68 Missed 86 | . 4 35 . . 17 30 Damage Taken 1759 | . 167 599 . . 438 555 Core 189 | . 22 22 . . 91 54 Absorbed by Shields . | . . . . . . . Redirected to Shielding 4 | . . 4 . . . . Regen/Repaired (Parts) 19 | . . . . 10 9 . Core Remaining (%) 91 | 100 . . . 82 . . Volleys Fired 88 | . 17 36 . . 27 8 Largest 2 | . 2 2 . . 1 1 Hottest 110 | . 40 110 . . . . Shots Fired 133 | . 34 64 . . 27 8 Gun 68 | . 34 34 . . . . Cannon 28 | . . 28 . . . . Launcher 2 | . . 2 . . . . Special 35 | . . . . . 27 8 Kinetic 86 | . 34 52 . . . . Thermal 10 | . . 10 . . . . Explosive 2 | . . 2 . . . . Electromagnetic . | . . . . . . . Impact 35 | . . . . . 27 8 Robot Hit Streak 13 | . 8 7 . . 13 3 Robot Miss Streak 4 | . 4 3 . . 1 2 Penetration Max . | . . . . . . . Secondary Targets . | . . . . . . . Shots Hit Robots 76 | . 22 31 . . 18 5 Core Hits 28 | . 7 17 . . 4 . Critical Kills 1 | . 1 . . . . . Critical Parts Destroyed 3 | . . . . . 3 . Critical Strikes 4 | . 1 . . . 3 . Destroy 1 | . 1 . . . . . Smash 3 | . . . . . 3 . Melee Attacks . | . . . . . . . Impact . | . . . . . . . Slashing . | . . . . . . . Piercing . | . . . . . . . Sneak Attacks . | . . . . . . . Combat Hostiles . | . . . . . . . Follow-up Attacks . | . . . . . . . Damage Inflicted 2795 | . 229 663 . . 1540 363 Guns 603 | . 229 374 . . . . Cannons 214 | . . 214 . . . . Explosions 75 | . . 75 . . . . Melee . | . . . . . . . Ramming . | . . . . . . . Kinetic 791 | . 229 562 . . . . Thermal 26 | . . 26 . . . . Explosive 75 | . . 75 . . . . Electromagnetic . | . . . . . . . Impact 1903 | . . . . . 1540 363 Slashing . | . . . . . . . Piercing . | . . . . . . . Highest Corruption . | . . . . . . . Average Corruption . | . . . . . . . Corruption Purged . | . . . . . . . Corruption Blocked . | . . . . . . . Overload Shots . | . . . . . . . Overflow Damage 760 | . . . . . 568 192 Projectiles 760 | . . . . . 568 192 Explosions . | . . . . . . . Melee . | . . . . . . . Knockbacks 10 | . . 2 . . 7 1 Impact 8 | . . . . . 7 1 Kinetic 2 | . . 2 . . . . Secondary . | . . . . . . . Self-Inflicted Damage . | . . . . . . . Shots . | . . . . . . . Rammed . | . . . . . . . Targets Rammed . | . . . . . . . Kicked . | . . . . . . . Crushed . | . . . . . . . Highest Temperature 13 | . . 13 . . . . Average Temperature 5 | . . 5 . . . . Received Heat Transfer 225 | . 42 183 . . . . Siege Activations . | . . . . . . . Robots Corrupted 6 | . . . . . 5 1 Combat Hostiles 6 | . . . . . 5 1 Parts Fried 6 | . . . . . 5 1 Impact Corruptions 25 | . . . . . 20 5 Robots Melted . | . . . . . . . Combat Hostiles . | . . . . . . . Parts Melted . | . . . . . . . Heat Transferred 37 | . . 37 . . . . Parts Sabotaged . | . . . . . . . Parts Stolen . | . . . . . . . Parts Stripped . | . . . . . . . Power Chain Reactions . | . . . . . . . Alert | -11 -10 -10 -8 -8 -6 -6 ------- Run | Yrd Mat Sub Rec Scr Fac Low Peak Influence 440 | . 206 . 78 . 440 . Initial 33 | . . . 33 . . . Average 92 | . 101 . 34 . 182 . Maximum Alert Level 2 | . 1 . . . 2 . Low Security (%) 77 | 100 67 . 100 . 56 . Level 1 20 | . 32 . . . 34 . Level 2 1 | . . . . . 9 . Level 3 . | . . . . . . . Level 4 . | . . . . . . . Level 5 . | . . . . . . . High Security . | . . . . . . . Max Security . | . . . . . . . Squads Dispatched 5 | . 2 . . . 3 . Investigation 1 | . . . . . 1 . Extermination 1 | . . . . . 1 . Reinforcement 3 | . 2 . . . 1 . Assault . | . . . . . . . Garrison . | . . . . . . . Intercept . | . . . . . . . Searches Triggered . | . . . . . . . Construction Impeded . | . . . . . . . Haulers Reinforced 1 | . . . . . 1 . Active Scanning Responses . | . . . . . . . Cargo Convoy Interrupts . | . . . . . . . Stealth | -11 -10 -10 -8 -8 -6 -6 --------- Run | Yrd Mat Sub Rec Scr Fac Low Distress Signals 2 | . 2 . . . . . Communications Jammed . | . . . . . . . Distress Signals . | . . . . . . . Times Spotted 49 | . 13 13 . . 15 8 Peak Tracking Total 6 | . 3 6 . . 5 4 Tactical Retreats 9 | . 2 1 . . 5 1 Traps | -11 -10 -10 -8 -8 -6 -6 ------- Run | Yrd Mat Sub Rec Scr Fac Low Traps Triggered . | . . . . . . . Indirectly . | . . . . . . . Trap Hack Attempts . | . . . . . . . Triggered . | . . . . . . . Disarmed . | . . . . . . . Reprogrammed . | . . . . . . . Reused . | . . . . . . . Traps Extracted . | . . . . . . . Installed . | . . . . . . . Triggered . | . . . . . . . Machines | -11 -10 -10 -8 -8 -6 -6 ---------- Run | Yrd Mat Sub Rec Scr Fac Low Machines Disabled 2 | . . 2 . . . . Max in Single Turn 1 | . . 1 . . . . Machines Repaired . | . . . . . . . Machines Dismantled . | . . . . . . . Machines Sabotaged . | . . . . . . . Overloaded Fab Kills . | . . . . . . . Hacking | -11 -10 -10 -8 -8 -6 -6 --------- Run | Yrd Mat Sub Rec Scr Fac Low Machines Accessed 11 | . . 1 5 3 2 . Terminals 5 | . . . 4 . 1 . Fabricators . | . . . . . . . Repair Stations . | . . . . . . . Recycling Units 2 | . . . 1 . 1 . Scanalyzers . | . . . . . . . Garrison Access . | . . . . . . . Total Hacks 31 | . . 9 9 7 6 . Successful 26 | . . 9 8 7 2 . Failed 5 | . . . 1 . 4 . Catastrophic . | . . . . . . . Database Lockouts . | . . . . . . . Manual 11 | . . . 5 . 6 . Terminals 11 | . . . 8 . 3 . Fabricators . | . . . . . . . Repair Stations . | . . . . . . . Recycling Units 4 | . . . 1 . 3 . Scanalyzers . | . . . . . . . Garrison Access . | . . . . . . . Terminal Hacks 21 | . . 9 4 7 1 . Record 14 | . . 8 . 6 . . Branch Access Points 1 | . . . . . 1 . Alert Level 1 | . . . 1 . . . Hauler Manifests 1 | . . . 1 . . . Registered Components 1 | . . . 1 . . . Zone Layout 1 | . . . 1 . . . Derelict Proto ID Bank 2 | . . 1 . 1 . . Fabricator Hacks . | . . . . . . . Repair Station Hacks . | . . . . . . . Recycling Unit Hacks . | . . . . . . . Scanalyzer . | . . . . . . . Garrison Access Hacks . | . . . . . . . Unauthorized Hacks 5 | . . . 4 . 1 . Terminals 3 | . . . 3 . . . Botnet 3 | . . . 3 . . . Fabricators . | . . . . . . . Repair Stations 1 | . . . . . 1 . Recycling Units 1 | . . . 1 . . . Tunnel 1 | . . . 1 . . . Fedlink 1 | . . . . . 1 . Scanalyzers . | . . . . . . . Garrison Access . | . . . . . . . Data Cores Recovered . | . . . . . . . Used . | . . . . . . . Hacking Detections 2 | . . . . . 2 . Full Trace Events . | . . . . . . . Feedback Events . | . . . . . . . Feedback Blocked . | . . . . . . . Robot Schematics Acquired . | . . . . . . . Robots Built . | . . . . . . . Authchips . | . . . . . . . Time . | . . . . . . . Total Robot Build Rating . | . . . . . . . Part Schematics Acquired . | . . . . . . . Parts Built . | . . . . . . . Authchips . | . . . . . . . Time . | . . . . . . . Total Part Build Rating . | . . . . . . . Parts Repaired . | . . . . . . . Time . | . . . . . . . Parts Recycled . | . . . . . . . Recycled Matter . | . . . . . . . Retrieved Matter . | . . . . . . . Retrieved Components . | . . . . . . . Parts Scanalyzed . | . . . . . . . Part Schematics Acquired . | . . . . . . . Parts Damaged . | . . . . . . . Bothacking | -11 -10 -10 -8 -8 -6 -6 ------------ Run | Yrd Mat Sub Rec Scr Fac Low Used RIF Installer . | . . . . . . . Robots Hacked . | . . . . . . . Non-combat . | . . . . . . . Combat . | . . . . . . . Robot Hacks Applied . | . . . . . . . Relay Couplers Released . | . . . . . . . Fabnet Peak Effective % . | . . . . . . . Robots Rewired . | . . . . . . . Allies Hacked . | . . . . . . . Hacks Repelled . | . . . . . . . Allies | -11 -10 -10 -8 -8 -6 -6 -------- Run | Yrd Mat Sub Rec Scr Fac Low Total Allies . | . . . . . . . Largest Group . | . . . . . . . Highest-Rated Group . | . . . . . . . Highest-Rated Ally . | . . . . . . . Total Orders . | . . . . . . . Ally Attacks . | . . . . . . . Total Damage . | . . . . . . . Kills . | . . . . . . . Allies Corrupted . | . . . . . . . Allies Melted . | . . . . . . . Intel | -11 -10 -10 -8 -8 -6 -6 ------- Run | Yrd Mat Sub Rec Scr Fac Low Robot Analysis Total . | . . . . . . . Derelict Logs Recovered 2 | . . . . 2 . . Drone Launches . | . . . . . . . Drone Recoveries . | . . . . . . . Exploration | -11 -10 -10 -8 -8 -6 -6 ------------- Run | Yrd Mat Sub Rec Scr Fac Low Turns Passed 5212 | 59 743 1196 639 2064 387 124 Spaces Moved 3444 | 33 328 647 397 1359 634 46 Core 1 | 1 . . . . . . Treads 2453 | 32 328 647 397 1049 . . Legs . | . . . . . . . Wheels 310 | . . . . 310 . . Hover . | . . . . . . . Flight 680 | . . . . . 634 46 Fastest Speed 40 | 50 160 160 160 120 40 40 Average Speed 132 | 156 160 160 160 150 40 40 Slowest Speed 160 | 160 160 160 160 160 40 40 Overloaded Moves . | . . . . . . . Propulsion Burnouts . | . . . . . . . Robots Hopped 10 | . . . . . 10 . Cave-ins Triggered . | . . . . . . . Exploration Rate (%) 34 | 3 45 29 49 86 18 13 Regions Visited 6 Branch Regions 4 Pre-discovered Areas 3 | . . . 1 2 . . Known Exits Taken 1 | . . . . . 1 . Unknown Exits Taken 5 | 1 1 1 1 1 . . Scrap Searched 17 | . . 9 . 6 . 2 Spaces Dug 7 | . . 2 . . 5 . Terrain Destroyed 18 | . . 6 . . 9 3 Melee . | . . . . . . . Projectile 18 | . . 6 . . 9 3 AOE . | . . . . . . . Terrain Rammed . | . . . . . . . Walls Destroyed . | . . . . . . . Machines Disabled . | . . . . . . . Actions | -11 -10 -10 -8 -8 -6 -6 --------- Run | Yrd Mat Sub Rec Scr Fac Low Total 3943 | 38 513 747 401 1373 728 143 Wait 329 | . 157 17 3 . 63 89 Move 3419 | 32 327 646 396 1358 614 46 Hop 9 | . . . . . 9 . Pick Up 12 | 1 3 7 . 1 . . Fast Attach 25 | 5 3 6 . 4 7 . Attach 4 | . . 1 . . 3 . Detach 5 | . 1 . . 1 3 . Swap 16 | . 3 9 1 3 . . Drop 30 | . 2 19 1 6 2 . Fire 88 | . 17 36 . . 27 8 Melee . | . . . . . . . Ram . | . . . . . . . Kick . | . . . . . . . Crush . | . . . . . . . Escape Stasis . | . . . . . . . Rewire . | . . . . . . . Trap . | . . . . . . . Miscellaneous 6 | . . 6 . . . . Route ------- -11/Scrapyard -10/Materials (discovered 3 exits: [*Mat] / [*Min] / *Sub) -10/Subcaves -8/Recycling -8/Scraptown (discovered 2 exits: *Fac x2) -6/Factory (discovered 2 exits: *Low x2) -6/Lower Caves History --------- Turn | Location | Event 7 | -11/Scrapyard | Discovered new exit (range 16) 60 | -11/Scrapyard | Entered Materials 164 | -10/Materials | Discovered new exit (range 6) 302 | -10/Materials | Discovered new exit (range 9) 306 | -10/Materials | Build established: Mutant 780 | -10/Materials | Discovered new exit (range 6) 803 | -10/Materials | Entered Subcaves 888 | -10/Subcaves | Disturbed a concealed Subdweller 1014 | -10/Subcaves | Discovered new exit (range 15) 1252 | -10/Subcaves | Build established: Subdweller-Mutant 1553 | -10/Subcaves | Build established: Mutant 1863 | -10/Subcaves | Visited 4L-MR0's lab 1886 | -10/Subcaves | Found Flightbrick 1999 | -10/Subcaves | Entered Recycling 2593 | -8/Recycling | Scanned before Scraplab entrance 2622 | -8/Recycling | Entered Scraplab 2636 | -8/Recycling | Discovered new exit (range 2) 2638 | -8/Recycling | Entered Scraptown 2822 | -8/Scraptown | Visited TADAMA 2850 | -8/Scraptown | Visited UFD Registry 2850 | -8/Scraptown | Registered with UFD as "Wiretorch" 2871 | -8/Scraptown | Visited Shadow of the Wyrm 2887 | -8/Scraptown | Visited Comm Corps 2968 | -8/Scraptown | Scanned Subdweller tech in exchange for log data 2971 | -8/Scraptown | Learned location of Testing (-3) 2972 | -8/Scraptown | Learned location of 1 exit from Upper Caves 2986 | -8/Scraptown | Build established: Subdweller-Mutant 2990 | -8/Scraptown | Discovered new exit (range 5) 3316 | -8/Scraptown | Visited CR-KLE's Repair Center 3355 | -8/Scraptown | Visited Awakened 3361 | -8/Scraptown | Build established: Mutant 3715 | -8/Scraptown | Visited Junk Cannon Lab 3763 | -8/Scraptown | Visited Scrap Suit Storage 3811 | -8/Scraptown | Visited Scrapoid Pod Storage 3862 | -8/Scraptown | Delivered Scrap Shield to a Scientist 3989 | -8/Scraptown | Found Scrap Suit 4032 | -8/Scraptown | Visited Abandonware Association 4053 | -8/Scraptown | Learned abandonware demo "ERRANTS.EXE" 4088 | -8/Scraptown | Visited DA-N13 Charitable Foundation 4102 | -8/Scraptown | Found DCF Scrap (31 items) 4179 | -8/Scraptown | Visited Observation Area 4269 | -8/Scraptown | Visited Infowarlord's Domain 4284 | -8/Scraptown | Found Spectral Analyzer 4358 | -8/Scraptown | Found Prototype Special Weapon 4358 | -8/Scraptown | Identified Junk Cannon 4515 | -8/Scraptown | Visited Science Guys 4596 | -8/Scraptown | Discovered new exit (range 5) 4645 | -8/Scraptown | Build established: Scrapper 4702 | -8/Scraptown | Entered Factory 4702 | -6/Factory | Evolved 8 slots: Power x1, Propulsion x3, Utility x4 4704 | -6/Factory | Attached Flightbrick, gained temporary slots: Utility x3 4912 | -6/Factory | Discovered new exit (range 9) 5003 | -6/Factory | Identified exit to Lower Caves 5028 | -6/Factory | Build established: Mutant 5089 | -6/Factory | Entered Lower Caves 5091 | -6/Lower Caves | UFD Scientist delivered a prototype 5213 | -6/Lower Caves | Self-destructed Last Messages --------------- Momentum Engine (+1 shot). 05110_ Searching scrap... 05110_ Found Melee Analysis Suite. 05110_ Found Humpback. 05110_ Found Phase Cannon. 05110_ Found Matter Compressor. 05110_ Found 45 Matter. 05130_ Destroyed VTOL Module. 05130_ Destroyed Lgt. Nuclear Core. 05130_ S-27 Virus system corrupted by crushing effect. 05130_ S-27 Virus knocked back. 05131_ S-27 Virus system terminally corrupted. 05131_ Autogun fried. 05173_ Destroyed VTOL Module. 05173_ S-27 Virus system corrupted by crushing effect. 05173_ S-27 Virus destroyed. 05176_ Junk Cannon collects and crushes Lgt. Nuclear Core. Map ----- +----------------------------------------------------+ | ??????????????????????????# #?????# ????????##? | | ??????????????????????????# ###??# ???????? ## | | ??????????????????????????# #### ???##?? # | | ??????????????????????????# ## ?? # | | ??????????????????????????? #?? #? # | | ??????????????????????????? ### ??? | | ??????????????????????????? ????? | | ???????????????????????????? ?? ????## | | ???????????????????????????? ???# ###### | | ????????????????????????????# ##### | | ????????????????????????????# #? " | | ????????????????????????????# ## #?# """" #?? | | ????????????????????????????# ### !%" #?? | | ???????????????????????????## ##### "! #?? | | ??????????????????????????## ####! """ #?? | | ?????????????????????????## %% !%! """" #?? | | ???????????????????????### ] "" ##? | | ???????????????????????# ####"# #? | | ???????????????????????# ##???#" ## | | ???????????????????????# #?????## | | ???????????????????????## ##??????# | | ????????????????????????# #??# #### | | ????????????????????????# ### ##??? | | ????????????????????????# ## #???? | | ????????????????????????# ### #???? | | ????????????????????????#@ #?## #### #??? | | ????????????????????????# ##??## ##??#### #?? | | ????????????????????????#ss #????###???????## #? | | ???????????????????????? #????????????????# # | | ???????????????????????? ????????????????? | | ??????????????????????? ???????????????? | | ??????????????????????? s### ???????????????? | | ?????????????????????? ???### ??????????????? | | ?????????????????????? s ??????# ???????????????# | | ????????????????????? ??????? ???????????????? | | ????????????????????? ???????? ???????????????? | | ???????????????????? ?????????#??????????????? | | ???????????????????? ##????????????????????????? | | ??????????????????? ??????????????????????????? | | ??????????????????? ??????????????????????????? | | ??????????????????## ??????????????????????????? | | ???????????????????## #??????????????????????????? | | ????????????????????##???????????????????????????? | | ?????????????????????????????????????????????????? | | ?????????????????????????????????????????????????? | | ?????????????????????????????????????????????????? | | ?????????????????????????????????????????????????? | | ?????????????????????????????????????????????????? | | ?????????????????????????????????????????????????? | | ?????????????????????????????????????????????????? | +----------------------------------------------------+ Best States ------------- Heat Dissipation 37 Energy Generation 15 Energy Capacity 265 Matter Stores 300 Matter Capacity 300 Sight Range 24 Robot Scan Range 15 Terrain Scan Density 110 Armor Coverage 800 Core Shielding 20 Evasion (%) 62 Recoil Reduction 2 Salvage Targeting 2 Offensive Hacking 12 Item Schematics ----------------- None Robot Schematics ------------------ None Fabricated ------------ Nothing Alien Tech Used ----------------- None Achievements -------------- None Challenges ------------ None Game ------ Seed AlloyLightMatrix Manual? 0 Play Time 00:40:53 Cumulative 89.9 hours Start 2024.08.07 @ 11:10:29 End 2024.08.07 @ 14:56:47 Sessions 3 Manual Loads 0 Difficulty Rogue Special Mode None Game No. 80 Rogue 80 Adventurer 0 Explorer 0 Win Type - Total 1 Types 1/0/0/0/0/0/0/0/0 Lore% 45 Gallery% 63 Achievement% 59 Wizard Run 0 Options --------- Layout 1 ASCII 0 Keyboard 1 Movement Vi Keybinds 0 Fullscreen 1 Font 24/Smallcaps Map View 50x35 Zoom Use 0% Tactical HUD 1 Map Filters NONE Filters NONE Steam 1 RUN: 011628da-bc0f-49ec-b395-555493ab1be9